Cogmind - Beta 16 @@@ ROGUE MODE // 2026.01.19 @ 17:34:20 Player: MrFartsburg Result: Destroyed by Y-45 Defender with Beam Rifle Performance ------------- Evolutions (2) 1000 Regions Visited (4) 800 Robots Destroyed (34) 170 Value Destroyed (1155) 1155 Prototype IDs (0) 0 Alien Tech Used (0) 0 Bonus (0) 0 TOTAL SCORE: 3125 Bonus ------- None Cogmind --------- Core Integrity 0/550 Matter 151/300 Energy 63/100 System Corruption 0% Temperature Cool (9) Movement Core (1400) Ox27 Location -8/Materials Parts ------- > --- POWER (2) -------- (None) > --- PROPULSION (3) --- (None) > --- UTILITY (4) ------ Huge Storage Unit Signal Interpreter > --- WEAPON (2) ------- Heavy Assault Rifle > --- INVENTORY (25) --- Heat Sink Heat Sink Heat Sink Small Storage Unit Field Recycling Unit (0) Assault Cannon Peak State ------------ > --- POWER ------------ Ion Engine Improved Ion Engine > --- PROPULSION ------- Aluminum Leg Aluminum Leg > --- UTILITY ---------- Huge Storage Unit Signal Interpreter Improved Targeting Computer High-powered Tractor Beam > --- WEAPON ----------- Improved Light Cannon Assault Cannon > --- INVENTORY -------- Ion Engine Improved Ion Engine Heat Sink Heat Sink Heat Sink Heat Sink Improved Heat Sink Small Storage Unit Field Recycling Unit Small Laser Light Assault Rifle Light Assault Rifle [Rating: 18] Favorites ----------- Power Ion Engine Engine Ion Engine Power Core Light Nuclear Core Propulsion Aluminum Leg Leg Aluminum Leg Utility Signal Interpreter Device Improved Heat Sink Storage Huge Storage Unit Processor Signal Interpreter Protection Hardened Light Armor Plating Weapon Light Assault Rifle Energy Gun Small Laser Energy Cannon Light EM Pulse Cannon Ballistic Gun Light Assault Rifle Ballistic Cannon Improved Light Cannon Build | -11 -10 -10 -9 -8 ------- Run | Yrd Mat Min Mat Mat Slots Evolved 4 | . . . 2 2 Power 1 | . . . 1 . Propulsion 1 | . . . . 1 Utility 2 | . . . 1 1 Weapon . | . . . . . Parts Attached 40 | 6 . . 20 14 Power 7 | 1 . . 4 2 Engine 6 | 1 . . 3 2 Core 1 | . . . 1 . Reactor . | . . . . . Propulsion 7 | 2 . . 4 1 Treads . | . . . . . Leg 7 | 2 . . 4 1 Wheel . | . . . . . Hover . | . . . . . Flight . | . . . . . Utility 12 | 1 . . 6 5 Device 6 | . . . 3 3 Storage 2 | 1 . . 1 . Processor 2 | . . . 1 1 Hackware . | . . . . . Protection 2 | . . . 1 1 Artifact . | . . . . . Weapon 14 | 2 . . 6 6 Energy Gun 1 | . . . . 1 Energy Cannon 2 | . . . 1 1 Ballistic Gun 9 | 2 . . 5 2 Ballistic Cannon 2 | . . . . 2 Launcher . | . . . . . Special Weapon . | . . . . . Impact Weapon . | . . . . . Slashing Weapon . | . . . . . Piercing Weapon . | . . . . . Special Melee Weapon . | . . . . . Unidentified Prototypes . | . . . . . Parts Lost 30 | . . . 11 19 Power 7 | . . . 2 5 Propulsion 5 | . . . 2 3 Utility 7 | . . . 2 5 Weapon 11 | . . . 5 6 Highest Loss Streak 11 | . . . 4 11 To Critical Strikes . | . . . . . Average Backups 8 | 1 2 2 7 10 Power . | . 1 1 . 1 Propulsion . | . . . . . Utility 4 | . . . 4 6 Weapon 2 | 1 1 1 2 2 Tool/Special . | . . . . . Unused Backups 2 | . . . 1 1 Power 1 | . . . 1 . Propulsion . | . . . . . Utility 1 | . . . . 1 Weapon . | . . . . . Tool/Special . | . . . . . Average Slot Usage (%) 80 | . 85 85 78 83 Engine 18 | . 14 14 19 14 Leg 7 | . 28 28 3 16 Device 8 | . . . 9 8 Storage 10 | . 14 14 11 9 Processor 11 | . . . 10 15 Protection 1 | . . . 1 2 Ballistic Gun 19 | . 28 28 21 8 Ballistic Cannon 1 | . . . . 6 Peak Build Rating 18 | 6 6 6 14 18 Average Rating 10 | 4 6 6 10 14 On Entrance 6 | . 6 6 6 12 Avg Prop Armor Cover (%) . | . . . . . Naked Turns . | . . . . . Heaviest Build 103 | 14 14 14 101 103 Greatest Support 20 | 20 20 20 20 20 Greatest Overweight (x) 32 | 1 . . 32 26 Average Overweight (x) 8 | . . . 18 4 Largest Inventory Capacity 25 | 8 8 8 25 25 Average Capacity 22 | 6 8 8 23 25 Most Carried 12 | 5 2 5 12 12 Average Carried 8 | 1 2 2 7 10 Final Capacity 25 | 8 8 8 25 25 Final Carried 10 | 2 2 5 10 6 Class Distribution -------------------- 66% | Scavenger-Mutant 33% | Mutant Dominant Class ---------------- Mutant | -10/Materials Mutant | -10/Mines Scavenger-Mutant | -9/Materials Scavenger-Mutant | -8/Materials Resources | -11 -10 -10 -9 -8 ----------- Run | Yrd Mat Min Mat Mat Matter Collected 995 | 230 . 54 383 328 Remotely 235 | . . . . 235 Salvage Created 1210 | . . 56 889 265 Parts 70 | . . 5 50 15 Haulers Intercepted . | . . . . . Recyclers Shooed 3 | . . . 2 1 Parts Field Recycled . | . . . . . Retrieved Matter . | . . . . . Parts Self-Destructed . | . . . . . Prevented . | . . . . . Parts Restored . | . . . . . Kills | -11 -10 -10 -9 -8 ------- Run | Yrd Mat Min Mat Mat Combat Hostiles Destroyed 33 | . . 3 20 10 Guns 24 | . . 3 18 3 Cannons 8 | . . . 1 7 AOE 1 | . . . 1 . Classes Destroyed 4 | . . 1 3 . Watcher 1 | . . . 1 . Swarmer 7 | . . 3 . 4 Grunt 19 | . . . 16 3 Sentry 7 | . . . 4 3 Best Kill Streak 3 | . . 3 3 3 Combat Bots Only 3 | . . 3 3 3 Max Kills in Single Turn 1 | . . 1 1 1 Gunslinging . | . . . . . Exploded 1 | . . . 1 . Melee . | . . . . . Uniques/NPCs Destroyed . | . . . . . Combat | -11 -10 -10 -9 -8 -------- Run | Yrd Mat Min Mat Mat Hostile Shots Fired 457 | . . 9 186 262 Missed 124 | . . 1 53 70 Hits 333 | . . 8 133 192 Projectile 333 | . . 8 133 192 AOE 1 | . . . . 1 Critical Strikes 6 | . . . . 6 Damage Taken 3890 | . . 71 1803 2016 Core 913 | . . 35 319 559 Absorbed by Shields . | . . . . . Core Remaining (%) 68 | 100 . 86 20 . Volleys Fired 126 | . . 4 79 43 Largest 2 | . . 2 2 2 Hottest 79 | . . 40 79 77 Shots Fired 240 | . . 8 154 78 Gun 191 | . . 8 143 40 Cannon 49 | . . . 11 38 Launcher . | . . . . . Special . | . . . . . Kinetic 227 | . . 8 143 76 Thermal 1 | . . . . 1 Explosive . | . . . . . Electromagnetic 12 | . . . 11 1 Robot Hit Streak 11 | . . 4 10 11 Robot Miss Streak 4 | . . 1 4 3 Penetration Max . | . . . . . Secondary Targets 5 | . . 1 4 . Max Gunslinging Chain 1 | . . 1 1 . Shots Hit Robots 153 | . . 5 94 54 Core Hits 65 | . . 3 45 17 Critical Kills 1 | . . . 1 . Critical Parts Destroyed 1 | . . . 1 . Critical Strikes 2 | . . . 2 . Destroy 2 | . . . 2 . Melee Attacks . | . . . . . Impact . | . . . . . Slashing . | . . . . . Piercing . | . . . . . Sneak Attacks . | . . . . . Combat Hostiles . | . . . . . Follow-up Attacks . | . . . . . Damage Inflicted 2271 | . . 67 1337 867 Guns 1509 | . . 67 1139 303 Cannons 677 | . . . 119 558 Explosions 73 | . . . 73 . Melee . | . . . . . Ramming 12 | . . . 6 6 Kinetic 2049 | . . 67 1139 843 Thermal 73 | . . . 73 . Explosive . | . . . . . Electromagnetic 137 | . . . 119 18 Impact . | . . . . . Slashing . | . . . . . Piercing . | . . . . . Highest Corruption . | . . . . . Average Corruption . | . . . . . Corruption Purged . | . . . . . Corruption Blocked . | . . . . . Overload Shots . | . . . . . Overflow Damage 44 | . . . . 44 Projectiles 44 | . . . . 44 Explosions . | . . . . . Melee . | . . . . . Knockbacks 4 | . . . . 4 Impact . | . . . . . Kinetic 4 | . . . . 4 Secondary . | . . . . . Self-Inflicted Damage 41 | . . . 41 . Shots 1 | . . . 1 . Rammed 2 | . . . 2 . Targets Rammed 5 | . . . 4 1 Kicked 3 | . . . 2 1 Crushed . | . . . . . Highest Temperature 337 | . . . 337 35 Average Temperature 75 | . . . 90 15 Received Heat Transfer 1257 | . . . 822 435 Effects 1 | . . . 1 . Shutdowns 1 | . . . 1 . Siege Activations . | . . . . . Martial Activations . | . . . . . Shielding Activations . | . . . . . Robots Disrupted . | . . . . . Combat Hostiles . | . . . . . Robots Corrupted . | . . . . . Combat Hostiles . | . . . . . Parts Fried 1 | . . . 1 . Impact Corruptions . | . . . . . Robots Melted . | . . . . . Combat Hostiles . | . . . . . Parts Melted . | . . . . . Heat Transferred 100 | . . . 100 . Parts Sabotaged . | . . . . . Parts Stolen . | . . . . . Parts Stripped . | . . . . . Power Chain Reactions 1 | . . . 1 . Alert | -11 -10 -10 -9 -8 ------- Run | Yrd Mat Min Mat Mat Maximum Alert Level 1 | . . . 1 . Low Security (%) 99 | 100 100 100 98 100 Level 1 . | . . . 1 . Level 2 . | . . . . . Level 3 . | . . . . . Level 4 . | . . . . . Level 5 . | . . . . . High Security . | . . . . . Max Security . | . . . . . Peak Influence 205 | . . 60 205 82 Initial 19 | . . . 19 8 Average 39 | . . 9 47 23 Influence Increases 898 | . . 70 541 287 Destroy 0b10 Robot/C 660 | . . 60 400 200 Destroy 0b10 Robot/NC 5 | . . . 5 . Destroy Leader 152 | . . 10 92 50 Successful Hack 11 | . . . 10 1 Disable Machine 45 | . . . 30 15 Destroy Structure 10 | . . . 4 6 Lose Combat Pursuer 15 | . . . . 15 Influence Decreases 898 | . . 20 571 307 Entered New Map 43 | . . . 31 12 Time Decay 666 | . . 20 470 176 Lost Part 189 | . . . 70 119 Squads Dispatched 5 | . . . 2 3 Investigation 3 | . . . 2 1 Extermination . | . . . . . Reinforcement 2 | . . . . 2 Assault . | . . . . . Garrison . | . . . . . Intercept . | . . . . . Searches Triggered . | . . . . . Construction Impeded . | . . . . . Haulers Reinforced . | . . . . . Active Scanning Responses . | . . . . . Cargo Convoy Interrupts . | . . . . . Stealth | -11 -10 -10 -9 -8 --------- Run | Yrd Mat Min Mat Mat Distress Signals 3 | . . . 2 1 Communications Jammed . | . . . . . Distress Signals . | . . . . . Times Spotted 52 | . . 3 25 24 Peak Tracking Total 7 | . . 3 6 7 Tactical Retreats 1 | . . . . 1 Traps | -11 -10 -10 -9 -8 ------- Run | Yrd Mat Min Mat Mat Traps Triggered 1 | . . . 1 . Indirectly . | . . . . . Trap Hack Attempts . | . . . . . Triggered . | . . . . . Disarmed . | . . . . . Reprogrammed . | . . . . . Reused . | . . . . . Traps Extracted . | . . . . . Installed . | . . . . . Triggered . | . . . . . Machines | -11 -10 -10 -9 -8 ---------- Run | Yrd Mat Min Mat Mat Machines Disabled 3 | . . . 2 1 Max in Single Turn 1 | . . . 1 1 Machines Repaired . | . . . . . Machines Dismantled . | . . . . . Machines Sabotaged . | . . . . . Overloaded Fab Kills . | . . . . . Hacking | -11 -10 -10 -9 -8 --------- Run | Yrd Mat Min Mat Mat Machines Accessed 5 | . . . 4 1 Terminals 5 | . . . 4 1 Fabricators . | . . . . . Repair Stations . | . . . . . Recycling Units . | . . . . . Scanalyzers . | . . . . . Garrison Access . | . . . . . Total Hacks 17 | . . . 14 3 Successful 9 | . . . 7 2 Failed 8 | . . . 7 1 Catastrophic . | . . . . . Database Lockouts . | . . . . . Manual . | . . . . . Terminals 17 | . . . 14 3 Fabricators . | . . . . . Repair Stations . | . . . . . Recycling Units . | . . . . . Scanalyzers . | . . . . . Garrison Access . | . . . . . Terminal Hacks 9 | . . . 7 2 Record 3 | . . . 1 2 Emergency Access Points 1 | . . . 1 . Alert Level 1 | . . . 1 . Maintenance Status 1 | . . . 1 . Transport Status 1 | . . . 1 . Hauler Manifests 1 | . . . 1 . Zone Layout 1 | . . . 1 . Fabricator Hacks . | . . . . . Repair Station Hacks . | . . . . . Recycling Unit Hacks . | . . . . . Scanalyzer . | . . . . . Garrison Access Hacks . | . . . . . Unauthorized Hacks . | . . . . . Terminals . | . . . . . Fabricators . | . . . . . Repair Stations . | . . . . . Recycling Units . | . . . . . Scanalyzers . | . . . . . Garrison Access . | . . . . . Data Cores Recovered . | . . . . . Used . | . . . . . Hacking Detections 5 | . . . 4 1 Full Trace Events 2 | . . . 1 1 Feedback Events . | . . . . . Feedback Blocked . | . . . . . Robot Schematics Acquired . | . . . . . Robots Built . | . . . . . Authchips . | . . . . . Time . | . . . . . Total Robot Build Rating . | . . . . . Part Schematics Acquired . | . . . . . Parts Built . | . . . . . Authchips . | . . . . . Time . | . . . . . Total Part Build Rating . | . . . . . Part Studies Acquired . | . . . . . Parts Repaired . | . . . . . Time . | . . . . . Parts Recycled . | . . . . . Recycled Matter . | . . . . . Retrieved Matter . | . . . . . Retrieved Components . | . . . . . Parts Scanalyzed . | . . . . . Part Schematics Acquired . | . . . . . Parts Damaged . | . . . . . Bothacking | -11 -10 -10 -9 -8 ------------ Run | Yrd Mat Min Mat Mat Used RIF Installer . | . . . . . Robots Hacked . | . . . . . Non-combat . | . . . . . Combat . | . . . . . Robot Hacks Applied . | . . . . . Relay Couplers Released . | . . . . . Fabnet Peak Effective % . | . . . . . Robots Rewired . | . . . . . Allies Hacked . | . . . . . Hacks Repelled . | . . . . . Allies | -11 -10 -10 -9 -8 -------- Run | Yrd Mat Min Mat Mat Total Allies . | . . . . . Largest Group . | . . . . . Highest-Rated Group . | . . . . . Highest-Rated Ally . | . . . . . Total Orders . | . . . . . Ally Attacks . | . . . . . Total Damage . | . . . . . Kills . | . . . . . Allies Corrupted . | . . . . . Allies Melted . | . . . . . Intel | -11 -10 -10 -9 -8 ------- Run | Yrd Mat Min Mat Mat Active Infowar (turns) . | . . . . . Robot Analysis Total . | . . . . . Derelict Logs Recovered . | . . . . . Drone Launches . | . . . . . Drone Recoveries . | . . . . . Exploration | -11 -10 -10 -9 -8 ------------- Run | Yrd Mat Min Mat Mat Turns Passed 3373 | 62 9 169 2463 670 Spaces Moved 507 | 43 8 128 206 122 Core 131 | 10 . . 120 1 Treads . | . . . . . Legs 376 | 33 8 128 86 121 Wheels . | . . . . . Hover . | . . . . . Flight . | . . . . . Fastest Speed 50 | 50 120 120 120 400 Average Speed 565 | 113 120 120 1038 423 Slowest Speed 1650 | 190 120 120 1650 1350 Overloaded Moves . | . . . . . Propulsion Burnouts . | . . . . . Robots Hopped . | . . . . . Potential Cave-ins . | . . . . . Cave-ins Triggered . | . . . . . Exploration Rate (%) 21 | 4 2 51 29 19 Regions Visited 4 Branch Regions 1 Pre-discovered Areas . | . . . . . Known Exits Taken 1 | . . . 1 . Unknown Exits Taken 3 | 1 1 1 . . Scrap Searched . | . . . . . Spaces Dug . | . . . . . Terrain Destroyed 6 | . . . 2 4 Melee . | . . . . . Projectile 4 | . . . . 4 AOE 2 | . . . 2 . Terrain Rammed . | . . . . . Walls Destroyed . | . . . . . Machines Disabled . | . . . . . Actions | -11 -10 -10 -9 -8 --------- Run | Yrd Mat Min Mat Mat Total 737 | 56 7 135 341 198 Wait 8 | . . 1 1 6 Move 503 | 42 7 127 205 122 Hop . | . . . . . Pick Up 43 | 8 . 3 23 9 Fast Attach . | . . . . . Attach 33 | 6 . . 14 13 Detach . | . . . . . Swap 15 | . . . 11 4 Drop 4 | . . . 4 . Fire 126 | . . 4 79 43 Melee . | . . . . . Ram 2 | . . . 2 . Kick 3 | . . . 2 1 Crush . | . . . . . Escape Stasis . | . . . . . Rewire . | . . . . . Trap . | . . . . . Miscellaneous . | . . . . . Route ------- -11/Scrapyard -10/Materials -10/Mines -9/Materials -8/Materials History --------- Turn | Location | Event 6 | -11/Scrapyard | Discovered new exit (range 15) 63 | -11/Scrapyard | Entered Materials 63 | -10/Materials | Discovered new exit (range 7) 72 | -10/Materials | Entered Mines 220 | -10/Mines | Discovered new exit (range 11) 241 | -10/Mines | Entered Materials 241 | -9/Materials | Evolved 2 slots: Power x1, Utility x1 311 | -9/Materials | Build established: Mutant 627 | -9/Materials | Lost 3 parts (1p1n1u) 660 | -9/Materials | Core integrity fell below 50% 699 | -9/Materials | Lost 4 parts (1p1n2w) 1116 | -9/Materials | Build established: Scavenger-Mutant 2441 | -9/Materials | Lost 3 parts (1u2w) 2446 | -9/Materials | Discovered new exit (range 16) 2700 | -9/Materials | Identified exit to Materials 2704 | -9/Materials | Entered another Materials area 2704 | -8/Materials | Evolved 2 slots: Propulsion x1, Utility x1 2917 | -8/Materials | Lost 3 parts (1p1u1w) 3253 | -8/Materials | Lost 3 parts (1p1n1u) 3347 | -8/Materials | Core integrity fell below 50% 3363 | -8/Materials | Core integrity fell below 20% 3374 | -8/Materials | Destroyed by Y-45 Defender with Beam Rifle Last Messages --------------- R-06 Scavenger collects Imp. Ion Engine. Acquired 4 matter. Lgt. Assault Rifle destroyed. Aluminum Leg destroyed. Imp. Ion Engine destroyed. Imp. Light Cannon destroyed. Aluminum Leg destroyed. ALERT: Hostiles spotted, dispatching reinforcements to Terminal M010. Imp. Heat Sink destroyed. Critical hit (Burn: +37). Lgt. Assault Rifle destroyed. Lgt. EM Pulse Cannon destroyed. Heat Sink destroyed. Sml. Laser destroyed. S-10 Pest destroyed. Imp. Targeting Computer destroyed. K-01 Serf collects debris. U-05 Engineer destroyed. R-06 Scavenger collects Lgt. Ion Engine. Map ----- +----------------------------------------------------+ | ?????????????????????????????? | | ?????????????????????????????? | | ?????????????????????????????? | | ?????????????????????????????? | | ?????????????????????????????? | | ?????????????????????????????? | | ?????????????????????????????? | | ?????????????????????????????? | | ?????????????????????????????? | | ???????########???###+###????? | | ????#### #???# ###### | | ????# %# ###"# = | | ????# # + % | | ????# + ##### | | ????# # = #???# | | ????# #/ #???##### | | ????# ########???????# | | ????# #????????????? | | ????# #??????????? "" | | ????# #?????????? "" = """ | | ???## ##??????? """ * """ | | ???# ##### R" [ | | ???# ssr """ | | ???# % %s """ | | ???#!%==##### = """ | | ???##@###?????? [[ "?" | | ???# ?????????? ? ? | | ???# "" ???????????? ??? | | ???#Y"Y [! ?????????????????? | | ???# "" !! #???????????????? | | ???# !! #???????????????? | | ???# #???????????????? | | ???# Y#???????????????? | | ???# + ??????????????? | | ???### ?###### ?????????????? | | ???????????????##????????????? | | ?????????????????????????????? | | ?????????????????????????????? | | ?????????????????????????????? | | ?????????????????????????????? | | ?????????????????????????????? | | ?????????????????????????????? | | ?????????????????????????????? | | ?????????????????????????????? | | ?????????????????????????????? | | ?????????????????????????????? | | ?????????????????????????????? | | ?????????????????????????????? | | ?????????????????????????????? | | ?????????????????????????????? | +----------------------------------------------------+ Best States ------------- Heat Dissipation 45 Energy Generation 19 Energy Capacity 415 Matter Stores 300 Matter Capacity 300 Sight Range 16 Terrain Scan Density 10 Armor Coverage 150 Evasion (%) 55 Targeting Accuracy 6 Item Schematics ----------------- None Robot Schematics ------------------ None Fabricated ------------ Nothing Repaired ---------- Nothing Studied --------- None Alien Tech Used ----------------- None Achievements -------------- Use The Force Challenges ------------ None Game ------ Seed HoverLaunchTerrabomb Manual? 0 Play Time 00:31:36 Cumulative 6.1 hours Start 2026.01.19 @ 17:05:08 End 2026.01.19 @ 17:34:20 Sessions 1 Manual Loads 0 Difficulty Rogue Special Mode None Game No. 11 Rogue 11 Adventurer 0 Explorer 0 Win Type - Total 0 Types 0/0/0/0/0/0/0/0/0/0 Lore% 2 Gallery% 8 Achievement% 8 Wizard Run 0 Options --------- Layout 1 ASCII 0 Keyboard 0 Movement Numpad Keybinds 0 Fullscreen 1 Font 32/SmallcapsGlow Map View 50x35 Zoom Use 0% Tactical HUD 0 Map Filters NONE Filters NONE Steam 1 RUN: 13f774c2-0c96-40d7-a8df-3c57b8cb49fe